[Event "WYCC 2018 O14"]
[Site "Halkidiki"]
[Date "2018.10.30"]
[Round "11"]
[White "Gavriil, Odysseas-Panagiotis"]
[Black "Turcan, Richard"]
[Result "0-1"]
[ECO "B76"]
[WhiteElo "2009"]
[BlackElo "2218"]
[Annotator "NA"]
[PlyCount "64"]
[EventDate "2018.10.20"]
[EventType "swiss"]
[EventCountry "GRE"]
[SourceTitle "playchess.com"]
[Source "ChessBase"]
[SourceQuality "1"]
[TimeControl "40/5400+30:1800+30"]

1. e4 {[%emt 0:00:00]} c5 {[%emt 0:00:00]} 2. Nf3 {[%emt 0:00:56]} d6 {[%emt 0:00:02]} 3. d4 {[%emt 0:00:05]} cxd4 {[%emt 0:00:04]} 4. Nxd4 {[%emt 0:00:11]} Nf6 {[%emt 0:00:05]} 5. Nc3 {[%emt 0:00:12]} g6 {[%emt 0:00:14]} 6. Be3 {[%emt 0:00:38]} Bg7 {[%emt 0:00:11]} 7. f3 {[%emt 0:00:09]} O-O {[%emt 0:00:05]} 8. g4 {[%emt 0:01:25]} Nc6 {[%emt 0:05:42]} 9. Qd2 {[%emt 0:01:16]} Be6 {[%emt 0:00:36]} 10. Nxe6 {[%emt 0:00:31]} fxe6 {[%emt 0:00:07]} 11. O-O-O {[%emt 0:00:47]} Ne5 {[%emt 0:00:32]} 12. Be2 {[%emt 0:00:08]} Qc8 {[%emt 0:00:19] B76: Sicilian Dragon: Yugoslav Attack, 9 g4 and 9 0-0-0} 13. h4 {[%emt 0:02:26] LiveBook: 74 Games} Nfd7 {[%emt 0:00:23]} 14. f4 {[%emt 0:12:43]} (14. h5 Nc4 15. Bxc4 Qxc4 16. hxg6 hxg6 17. f4 Bxc3 18. bxc3 Nf6 19. Bd4 e5 20. fxe5 dxe5 {1-0 (41) Cornette,M (2611)-Jones,G (2640) chess.com INT 2018}) 14... Nc4 {[%emt 0:00:32]} 15. Bxc4 {[%emt 0:00:10]} Qxc4 {[%emt 0:00:04]} 16. e5 {[%emt 0:00:07]} Rad8 {[%emt 0:01:54]} 17. exd6 {[%emt 0:05:55]} Nf6 {[%emt 0:00:29]} 18. Qg2 {[%emt 0:21:05]} Rxd6 {[%emt 0:01:15]} {Predecessor:} 19. Rxd6 $146 {[%emt 0:03:27]} exd6 {[%emt 0:00:07]} 20. Rd1 {[%emt 0:11:52] 0-1 (32) Zhou,Y (2475)-Pert,R (2430) Aberystwyth 2014} d5 {[%emt 0:00:21]} 21. Bd4 {[%emt 0:01:38]} Nd7 {[%emt 0:02:06]} 22. Qe2 $2 {[%emt 0:05:02]} (22. b3 $11 Qc7 23. Ne2) 22... Bxd4 {[%emt 0:09:43]} 23. Qxe6+ {[%emt 0:06:47]} Rf7 {[%emt 0:00:42]} 24. Nxd5 {[%emt 0:00:08]} Kg7 {[%emt 0:28:22]} 25. c3 $2 {[%emt 0:01:19] [#]} (25. h5 $17 Qc6 26. f5 gxf5 27. h6+ Kf8 28. gxf5) 25... Nc5 $1 {[%emt 0:01:15]} 26. Qe8 {[%emt 0:04:24]} Qxd5 {[%emt 0:02:40]} 27. Rxd4 {[%emt 0:00:08]} Qe6 {[%emt 0:01:25]} 28. Qb5 {[%emt 0:00:16]} Qe3+ {[%emt 0:02:57]} 29. Kc2 {[%emt 0:00:48]} Ne6 {[%emt 0:01:02]} 30. Rd7 $19 {[%emt 0:02:31]} Qe4+ {[%emt 0:03:37]} 31. Kd1 {[%emt 0:00:33]} Qxf4 {[%emt 0:02:17]} 32. Qxb7 {[%emt 0:00:37]} Qa4+ {[%emt 0:00:13]} 0-1

[Event "WYCC 2018 O14"]
[Site "Halkidiki"]
[Date "2018.10.30"]
[Round "11"]
[White "Nguyen, Huynh Minh Thien"]
[Black "Trifan, Andrei Ioan"]
[Result "1-0"]
[ECO "A05"]
[WhiteElo "1996"]
[BlackElo "2290"]
[Annotator "NA"]
[PlyCount "87"]
[EventDate "2018.10.20"]
[EventType "swiss"]
[EventCountry "GRE"]
[SourceTitle "playchess.com"]
[Source "ChessBase"]
[SourceQuality "1"]
[TimeControl "40/5400+30:1800+30"]

1. Nf3 {[%emt 0:00:00]} Nf6 {[%emt 0:00:00]} 2. g3 {[%emt 0:00:00]} g6 {[%emt 0:00:15]} 3. Bg2 {[%emt 0:00:00]} Bg7 {[%emt 0:00:07]} 4. O-O {[%emt 0:00:03]} O-O {[%emt 0:00:21]} 5. d4 {[%emt 0:00:05]} d6 {[%emt 0:00:55]} 6. Re1 {[%emt 0:00:07]} Nbd7 {[%emt 0:01:23]} 7. e4 {[%emt 0:00:06]} e5 {[%emt 0:00:22]} 8. c3 {[%emt 0:00:07]} b6 {[%emt 0:00:41]} 9. Nbd2 {[%emt 0:00:08] A49: 1 d4 Nf6 2 Nf3 g6 3 g3: Anti-King's Indian systems} Bb7 {[%emt 0:00:37]} 10. Qc2 {[%emt 0:00:37]} Re8 {[%emt 0:00:25]} 11. a4 {[%emt 0:00:08]} a6 {[%emt 0:01:28]} 12. b3 {[%emt 0:04:11]} (12. h3 Rc8 13. dxe5 Nxe5 14. Nxe5 Rxe5 15. Nc4 Re6 16. Bd2 Qe8 {0-1 (38) Kunte,A (2491)-Demchenko,A (2628) Karlsruhe 2017}) 12... exd4 {[%emt 0:08:56]} 13. cxd4 {[%emt 0:01:47]} c5 {[%emt 0:00:42]} 14. Bb2 {[%emt 0:01:23]} cxd4 {[%emt 0:03:43]} 15. Nxd4 {[%emt 0:00:42]} Rc8 {[%emt 0:07:40]} 16. Qb1 {[%emt 0:08:23]} d5 {[%emt 0:04:58]} 17. exd5 {[%emt 0:03:56]} Rxe1+ $146 {[%emt 0:10:30]} ({Predecessor:} 17... Bxd5 18. Rxe8+ Qxe8 19. Bxd5 Nxd5 {½-½ (25) Rajdeep,S (2154)-Ramnath,B (2431) Nagpur 2015}) 18. Qxe1 {[%emt 0:00:20]} Nc5 {[%emt 0:00:53]} 19. Qf1 {[%emt 0:10:44]} Bxd5 {[%emt 0:06:02]} 20. b4 {[%emt 0:05:50]} Bxg2 {[%emt 0:06:15]} 21. Kxg2 {[%emt 0:00:36]} Nce4 {[%emt 0:01:44]} 22. Nxe4 {[%emt 0:02:51]} Nxe4 {[%emt 0:00:34]} 23. Rd1 {[%emt 0:06:13]} Qd5 {[%emt 0:08:01]} 24. Nf3 {[%emt 0:02:55]} Qb7 {[%emt 0:03:56]} 25. Bxg7 {[%emt 0:00:24]} Kxg7 {[%emt 0:00:44]} 26. Qd3 {[%emt 0:02:15]} Nc3 {[%emt 0:07:13]} 27. Qd7 {[%emt 0:13:22]} Rc7 {[%emt 0:02:10]} 28. Qd4+ {[%emt 0:00:07]} f6 {[%emt 0:00:56]} 29. Re1 {[%emt 0:07:17]} Nxa4 {[%emt 0:02:05]} 30. Re8 {[%emt 0:02:12]} Rc3 {[%emt 0:03:26]} 31. Qd1 {[%emt 0:01:48]} b5 {[%emt 0:01:17]} 32. Qe2 {[%emt 0:01:03]} Rc7 {[%emt 0:00:50]} 33. h4 {[%emt 0:03:03]} Qd5 {[%emt 0:03:57]} 34. h5 {[%emt 0:03:37]} Rf7 {[%emt 0:02:12]} 35. h6+ {[%emt 0:03:36]} Kxh6 {[%emt 0:00:11]} 36. Rg8 {[%emt 0:00:01]} g5 {[%emt 0:05:14]} 37. Qe1 {[%emt 0:11:21]} Rg7 {[%emt 0:00:30]} 38. Rf8 {[%emt 0:00:01]} Rf7 {[%emt 0:03:28]} 39. Rg8 {[%emt 0:00:06]} Rg7 {[%emt 0:00:13]} 40. Rf8 {[%emt 0:00:00]} Rg6 {[%emt 0:00:00]} 41. Rh8 {[%emt 0:03:42]} Kg7 {[%emt 0:08:47]} 42. Qe8 {[%emt 0:00:44]} Rh6 {[%emt 0:04:29]} 43. Qf8+ {[%emt 0:02:19]} Kg6 {[%emt 0:00:01]} 44. g4 {[%emt 0:00:20]} 1-0

[Event "WYCC 2018 O14"]
[Site "Halkidiki"]
[Date "2018.10.30"]
[Round "11"]
[White "Chatzieleftheriou, Andreas"]
[Black "Tengis, Tsog-Ochir"]
[Result "0-1"]
[ECO "C50"]
[WhiteElo "1984"]
[BlackElo "2205"]
[Annotator "NA"]
[PlyCount "66"]
[EventDate "2018.10.20"]
[EventType "swiss"]
[EventCountry "GRE"]
[SourceTitle "playchess.com"]
[Source "ChessBase"]
[SourceQuality "1"]
[TimeControl "40/5400+30:1800+30"]

1. e4 {[%emt 0:00:00]} e5 {[%emt 0:00:00]} 2. Nf3 {[%emt 0:00:00]} Nc6 {[%emt 0:00:00]} 3. Bc4 {[%emt 0:00:00]} Bc5 {[%emt 0:00:00]} 4. d3 {[%emt 0:00:07]} Nf6 {[%emt 0:00:00]} 5. O-O {[%emt 0:00:12]} O-O {[%emt 0:00:00]} 6. c3 {[%emt 0:00:08]} d6 {[%emt 0:00:05]} 7. Nbd2 {[%emt 0:00:22]} Bg4 {[%emt 0:00:37]} 8. h3 {[%emt 0:01:11]} Bh5 {[%emt 0:00:35] C54: Giuoco Piano: 4 c3 Nf6, main lines with 5 d4 and 5 d3} 9. Re1 {[%emt 0:03:39]} Kh8 {[%emt 0:00:57]} (9... Re8 10. b4 Bb6 11. Qb3 Qd7 12. a4 a5 13. b5 Nd8 14. Nh4 Ne6 15. Nf1 Rad8 {½-½ (57) Bodrozic,T (2415)-Pinter,J (2543) Baden 2016}) 10. Nf1 $146 {[%emt 0:01:53]} ({Predecessor:} 10. a4 a5 11. Nf1 Qd7 12. Ng3 Bg6 13. Nh4 Rae8 14. Bg5 Ng8 15. Be3 Bxe3 16. Rxe3 {0-1 (43) Baeumer,L-Goessling,G Enger 1992}) 10... Bg6 {[%emt 0:00:10]} 11. Bb3 {[%emt 0:10:44]} d5 {[%emt 0:00:54]} (11... h6 $14) 12. exd5 {[%emt 0:01:31]} Nxd5 {[%emt 0:00:11]} 13. Bc2 {[%emt 0:00:23]} (13. Nxe5 $16 Nxe5 14. Rxe5) 13... f6 {[%emt 0:00:38]} 14. Ng3 {[%emt 0:03:23]} Bb6 {[%emt 0:00:37]} 15. Nh4 {[%emt 0:15:53]} f5 {[%emt 0:01:02]} 16. Nxg6+ {[%emt 0:01:12]} hxg6 {[%emt 0:00:02]} 17. d4 {[%emt 0:08:52]} Qh4 {[%emt 0:03:28]} 18. Qf3 $1 {[%emt 0:04:53]} e4 {[%emt 0:00:39]} 19. Nxe4 {[%emt 0:01:45]} fxe4 {[%emt 0:00:44]} 20. Rxe4 {[%emt 0:00:11]} Qf6 {[%emt 0:04:52]} 21. Qg3 {[%emt 0:03:15]} Nxd4 {[%emt 0:05:28]} 22. cxd4 {[%emt 0:00:57]} Rae8 $2 {[%emt 0:02:25]} (22... Kg8 23. Bb3 c6) 23. Bg5 {[%emt 0:04:56]} Qf7 {[%emt 0:00:37]} 24. Rh4+ {[%emt 0:05:32]} Kg8 {[%emt 0:00:00]} 25. Be3 {[%emt 0:00:49]} Re6 {[%emt 0:00:41]} 26. Rg4 {[%emt 0:08:16]} c6 {[%emt 0:00:49]} 27. Rxg6 $2 {[%emt 0:03:13]} ({Schlechter ist} 27. Bxg6 Rxg6 28. Rxg6 Bc7 $15) (27. Bd3 $16 {und es läuft.}) 27... Bc7 {[%emt 0:00:12]} 28. Qg4 $19 {[%emt 0:09:11]} Rxe3 {[%emt 0:00:31]} 29. Rxg7+ {[%emt 0:01:30]} Qxg7 {[%emt 0:00:03]} 30. fxe3 {[%emt 0:01:39]} Qxg4 {[%emt 0:00:08]} 31. hxg4 {[%emt 0:00:02]} Nxe3 {[%emt 0:00:19]} 32. Bb3+ {[%emt 0:01:32]} Kg7 {[%emt 0:00:02]} 33. g3 {[%emt 0:01:02]} Bxg3 {[%emt 0:00:02]} 0-1

[Event "WYCC 2018 O14"]
[Site "Halkidiki"]
[Date "2018.10.30"]
[Round "11"]
[White "Gaal, Zsoka"]
[Black "Fecker, Noah"]
[Result "1/2-1/2"]
[ECO "A04"]
[WhiteElo "1976"]
[BlackElo "2184"]
[Annotator "NA"]
[PlyCount "114"]
[EventDate "2018.10.20"]
[EventType "swiss"]
[EventCountry "GRE"]
[SourceTitle "playchess.com"]
[Source "ChessBase"]
[SourceQuality "1"]
[TimeControl "40/5400+30:1800+30"]

1. Nf3 {[%emt 0:00:00]} c5 {[%emt 0:00:00]} 2. c4 {[%emt 0:00:00]} Nc6 {[%emt 0:00:00]} 3. Nc3 {[%emt 0:00:00]} e5 {[%emt 0:00:00]} 4. g3 {[%emt 0:00:27]} g6 {[%emt 0:00:00]} 5. Bg2 {[%emt 0:00:25]} Bg7 {[%emt 0:00:00]} 6. O-O {[%emt 0:00:26]} d6 {[%emt 0:00:00]} 7. a3 {[%emt 0:01:57]} Nge7 {[%emt 0:00:14]} 8. Rb1 {[%emt 0:00:20]} a5 {[%emt 0:05:05]} 9. d3 {[%emt 0:00:33]} O-O {[%emt 0:00:17]} 10. Bd2 {[%emt 0:00:24]} Rb8 {[%emt 0:02:29]} 11. Qa4 {[%emt 0:00:42]} h6 {[%emt 0:11:03] A37: Symmetrical English vs ...g6: 4 Bg2 Bg7 5 Nf3} (11... Be6 12. Nb5 d5 13. cxd5 Bxd5 14. Nc3 Be6 15. Ng5 Bf5 16. Nge4 b6 17. Nxc5 bxc5 18. Bxc6 Nxc6 19. Qxc6 {½-½ (31) Gledura,B (2612)-Vachier Lagrave,M (2793) Caleta 2018}) 12. Rfc1 {[%emt 0:13:18]} f5 {[%emt 0:05:52]} 13. e3 $146 {[%emt 0:11:16]} ({Predecessor:} 13. Nb5 Be6 14. b4 axb4 15. axb4 b6 16. Ne1 Qd7 17. Nc2 g5 18. Nc3 Ra8 19. Qb5 {1-0 (53) Magalashvili,D (2522)-Ameir,M (2323) Ordu 2018}) 13... g5 {[%emt 0:10:28]} 14. Nd5 {[%emt 0:05:29]} Bd7 {[%emt 0:09:46]} 15. Qc2 {[%emt 0:05:01]} f4 {[%emt 0:04:14]} 16. exf4 {[%emt 0:09:49]} exf4 {[%emt 0:05:02]} 17. Nxe7+ {[%emt 0:07:53]} Qxe7 {[%emt 0:02:00]} 18. Re1 {[%emt 0:00:44]} Qd8 {[%emt 0:02:33]} 19. Bc3 {[%emt 0:06:44]} Bg4 {[%emt 0:07:47]} 20. h3 {[%emt 0:09:19]} Bxf3 {[%emt 0:12:41]} 21. Bxf3 {[%emt 0:00:03]} fxg3 {[%emt 0:02:46]} 22. Bd5+ {[%emt 0:00:17]} Kh8 {[%emt 0:00:01]} 23. Bxg7+ {[%emt 0:00:18]} Kxg7 {[%emt 0:00:01]} 24. fxg3 {[%emt 0:00:23]} Ne5 {[%emt 0:01:55]} 25. Kg2 {[%emt 0:05:45]} Qd7 {[%emt 0:01:18]} 26. Rf1 {[%emt 0:06:27]} g4 {[%emt 0:04:42]} 27. hxg4 {[%emt 0:00:55]} Qxg4 {[%emt 0:00:59]} 28. Rbe1 {[%emt 0:05:18]} b6 {[%emt 0:02:17]} 29. Re4 {[%emt 0:03:27]} Rxf1 {[%emt 0:03:39]} 30. Rxg4+ {[%emt 0:01:12]} Nxg4 {[%emt 0:00:01]} 31. Qa4 {[%emt 0:04:24]} Ne3+ {[%emt 0:00:35]} 32. Kh2 {[%emt 0:00:03]} Nxd5 {[%emt 0:00:52]} 33. cxd5 {[%emt 0:00:12]} Rf6 {[%emt 0:03:54]} 34. Qd7+ {[%emt 0:01:47]} Kg6 {[%emt 0:00:11]} 35. Qg4+ {[%emt 0:00:49]} Kf7 {[%emt 0:00:32]} 36. Qe4 {[%emt 0:01:10]} Rg8 {[%emt 0:00:37]} 37. Qe3 {[%emt 0:00:35]} Re8 {[%emt 0:01:12]} 38. Qd2 {[%emt 0:00:23]} Re5 {[%emt 0:00:45]} 39. Qg2 {[%emt 0:00:29]} Kg7 {[%emt 0:01:53]} 40. b4 {[%emt 0:00:00]} axb4 {[%emt 0:00:00]} 41. axb4 {[%emt 0:00:42]} cxb4 {[%emt 0:01:45]} 42. Qa2 {[%emt 0:02:19]} ({Better is} 42. Qb2 $15) 42... Kg6 {[%emt 0:07:17]} 43. Qc4 {[%emt 0:07:28]} h5 {[%emt 0:03:52]} 44. Qxb4 {[%emt 0:06:20]} Rxd5 {[%emt 0:00:51]} 45. Qe4+ {[%emt 0:05:04]} Rff5 {[%emt 0:01:22]} 46. g4 {[%emt 0:05:42]} hxg4 {[%emt 0:00:25]} 47. Qxg4+ {[%emt 0:00:22]} Kf7 {[%emt 0:00:44]} 48. Qc4 {[%emt 0:01:18]} b5 {[%emt 0:00:38]} 49. Qc8 {[%emt 0:03:56]} Rg5 {[%emt 0:00:57]} 50. Qd7+ {[%emt 0:00:30]} Kf6 {[%emt 0:00:05]} 51. Qd8+ {[%emt 0:00:58]} Kf5 {[%emt 0:00:13]} 52. Qe8 {[%emt 0:00:39]} Kf6 {[%emt 0:03:27]} 53. Qd8+ {[%emt 0:00:37]} Kg7 {[%emt 0:00:44]} 54. Qe7+ $11 {[%emt 0:00:38]} Kh6 {[%emt 0:01:15]} 55. Qe6+ {[%emt 0:00:28]} Kh7 {[%emt 0:00:13]} 56. Qf7+ {[%emt 0:00:13]} Kh8 {[%emt 0:00:06]} 57. Qf8+ {[%emt 0:00:14]} Kh7 {[%emt 0:00:04]} 1/2-1/2

[Event "WYCC 2018 O14"]
[Site "Halkidiki"]
[Date "2018.10.30"]
[Round "11"]
[White "Misyura, Ilya"]
[Black "Vitenberg, Noam Aviv"]
[Result "0-1"]
[ECO "D30"]
[WhiteElo "1967"]
[BlackElo "2175"]
[Annotator "NA"]
[PlyCount "74"]
[EventDate "2018.10.20"]
[EventType "swiss"]
[EventCountry "GRE"]
[SourceTitle "playchess.com"]
[Source "ChessBase"]
[SourceQuality "1"]
[TimeControl "40/5400+30:1800+30"]

1. d4 {[%emt 0:00:00]} d5 {[%emt 0:00:00]} 2. c4 {[%emt 0:00:00]} e6 {[%emt 0:00:00]} 3. g3 {[%emt 0:00:06]} dxc4 {[%emt 0:02:28]} 4. Bg2 {[%emt 0:00:45]} a6 {[%emt 0:02:34]} 5. Nf3 {[%emt 0:00:55]} Nc6 {[%emt 0:01:02]} 6. O-O {[%emt 0:00:53]} Nf6 {[%emt 0:00:17]} 7. e3 {[%emt 0:01:15]} Bd7 {[%emt 0:00:09]} 8. Qe2 {[%emt 0:00:24]} b5 {[%emt 0:01:52]} 9. b3 {[%emt 0:00:24] E04: Open Catalan: 5 Nf3} cxb3 {[%emt 0:00:07]} 10. axb3 {[%emt 0:00:03]} Be7 {[%emt 0:05:32]} 11. Bd2 {[%emt 0:00:26]} (11. Bb2 O-O 12. Rc1 Ra7 13. Nc3 Qb8 14. Ne5 Nxe5 15. dxe5 Nd5 16. Bxd5 exd5 17. Nxd5 {1-0 (26) Ragger,M (2700)-Ruck,R (2566) Germany 2017}) 11... O-O {[%emt 0:00:42]} 12. Ne5 $146 {[%emt 0:04:04]} ({Predecessor:} 12. Rc1 Bd6 13. Nc3 e5 14. Nxb5 e4 15. Nxd6 cxd6 16. Ng5 d5 17. Rxa6 Rxa6 18. Qxa6 {½-½ (28) Velilla Velasco,F (2559)-Plomp,M (2541) ICCF email 2015}) 12... Nxe5 {[%emt 0:05:14]} 13. Bxa8 {[%emt 0:07:03]} Qxa8 {[%emt 0:00:08]} 14. dxe5 {[%emt 0:00:10]} Ne4 {[%emt 0:09:08]} 15. Bc1 {[%emt 0:07:56]} Bc6 {[%emt 0:06:41]} 16. f3 {[%emt 0:05:57]} Nc5 {[%emt 0:07:24]} 17. Nd2 {[%emt 0:03:51]} b4 {[%emt 0:03:51]} 18. Qc4 {[%emt 0:12:02]} Rb8 {[%emt 0:11:39]} 19. Qc2 {[%emt 0:07:29]} Rd8 {[%emt 0:04:31]} 20. e4 {[%emt 0:17:29]} Bb5 {[%emt 0:06:04]} 21. Nc4 {[%emt 0:06:16]} Rd3 {[%emt 0:06:45]} 22. Bd2 {[%emt 0:07:20]} Rxb3 {[%emt 0:02:19]} 23. Rab1 {[%emt 0:01:56]} Rxb1 {[%emt 0:05:09]} 24. Rxb1 {[%emt 0:00:18]} b3 {[%emt 0:08:16]} 25. Qc3 {[%emt 0:01:42]} Qd8 {[%emt 0:01:33]} 26. Be3 {[%emt 0:04:45]} Qd3 {[%emt 0:01:21]} 27. Qxd3 $17 {[%emt 0:01:12]} Nxd3 {[%emt 0:00:04]} 28. Nd2 {[%emt 0:01:41]} b2 {[%emt 0:00:56]} 29. Bd4 {[%emt 0:00:43]} Ba3 {[%emt 0:00:28]} 30. Bc3 {[%emt 0:02:31]} c5 {[%emt 0:01:22]} 31. f4 {[%emt 0:00:37]} Bb4 {[%emt 0:00:30]} 32. Bxb4 {[%emt 0:02:02]} cxb4 {[%emt 0:00:04]} 33. Rd1 {[%emt 0:00:38]} a5 {[%emt 0:00:26]} 34. Nb3 {[%emt 0:00:41]} a4 {[%emt 0:00:13]} 35. Nc5 {[%emt 0:00:06]} a3 {[%emt 0:00:11]} 36. Nxd3 {[%emt 0:00:14]} Bxd3 {[%emt 0:00:03]} 37. Kf2 {[%emt 0:00:03]} b1=Q {[%emt 0:00:06]} 0-1

[Event "WYCC 2018 O14"]
[Site "Halkidiki"]
[Date "2018.10.30"]
[Round "11"]
[White "Domalchuk-Jonasson, Aleksandr"]
[Black "Lopez Varela, Pablo"]
[Result "1-0"]
[ECO "A41"]
[WhiteElo "1963"]
[BlackElo "2172"]
[Annotator "NA"]
[PlyCount "77"]
[EventDate "2018.10.20"]
[EventType "swiss"]
[EventCountry "GRE"]
[SourceTitle "playchess.com"]
[Source "ChessBase"]
[SourceQuality "1"]
[TimeControl "40/5400+30:1800+30"]

1. d4 {[%emt 0:00:00]} d6 {[%emt 0:00:00]} 2. Nf3 {[%emt 0:00:27]} Nf6 {[%emt 0:00:00]} 3. c4 {[%emt 0:00:49]} Nbd7 {[%emt 0:00:00]} 4. Nc3 {[%emt 0:00:07]} g6 {[%emt 0:00:05]} 5. e4 {[%emt 0:00:06]} e5 {[%emt 0:00:27]} 6. d5 {[%emt 0:00:33]} Bg7 {[%emt 0:00:07]} 7. Bd3 {[%emt 0:03:51] E61: King's Indian: Early deviations for White, including Smyslov System} (7. h3 Nc5 8. Qc2 a5 9. Be3 b6 10. Be2 Bd7 11. Nd2 O-O 12. g4 Ne8 13. O-O-O f5 14. gxf5 gxf5 15. Bxc5 bxc5 16. exf5 Bxf5 17. Nde4 Nf6 18. f3 Nh5 19. Rdg1 Bg6 20. Bd1 Nf4 {0-1 (58) Duda,J (2724)-Lewtak,D (2370) Zgierz 2018}) 7... a5 {[%emt 0:00:39]} 8. O-O {[%emt 0:00:44]} Nc5 {[%emt 0:00:18]} 9. Bc2 {[%emt 0:00:11]} O-O {[%emt 0:01:06]} 10. a3 {[%emt 0:03:05]} Ne8 {[%emt 0:01:35]} 11. Be3 {[%emt 0:00:38]} b6 $146 {[%emt 0:00:59]} ({Predecessor:} 11... f5 12. b4 axb4 13. axb4 Rxa1 14. Qxa1 Nxe4 15. Nxe4 fxe4 16. Bxe4 Nf6 {0-1 (32) Reichardt,R-Hoeneveld,M (1756) Rotterdam 2014}) 12. Ne1 {[%emt 0:08:15]} f5 {[%emt 0:02:04]} 13. exf5 {[%emt 0:02:33]} gxf5 {[%emt 0:03:55]} 14. f4 {[%emt 0:00:53]} e4 {[%emt 0:06:07]} 15. Bd4 {[%emt 0:01:27]} Nf6 {[%emt 0:02:16]} 16. g3 {[%emt 0:07:05]} Bd7 {[%emt 0:05:13]} 17. Ng2 {[%emt 0:00:42]} Be8 {[%emt 0:06:17]} 18. Ne3 {[%emt 0:02:09]} Bh5 {[%emt 0:01:46]} 19. Qd2 {[%emt 0:00:16]} Ng4 {[%emt 0:04:14]} 20. Bxg7 $16 {[%emt 0:08:46]} Nxe3 {[%emt 0:06:45]} 21. Qxe3 {[%emt 0:01:28]} Kxg7 {[%emt 0:00:07]} 22. b4 {[%emt 0:00:26]} Nd7 {[%emt 0:03:38]} 23. Nb5 {[%emt 0:00:34]} Bf7 {[%emt 0:03:07]} 24. Ba4 {[%emt 0:00:55]} Nf6 {[%emt 0:05:31]} 25. Nd4 {[%emt 0:01:51]} Qc8 {[%emt 0:00:11]} 26. Bc6 {[%emt 0:00:21]} Ra7 {[%emt 0:00:15]} 27. Qc3 {[%emt 0:00:51]} Kg6 {[%emt 0:06:02]} 28. Nb3 {[%emt 0:04:20]} Nd7 {[%emt 0:06:15]} 29. bxa5 {[%emt 0:04:42]} bxa5 {[%emt 0:00:06]} 30. Bxd7 {[%emt 0:00:24]} Qxd7 {[%emt 0:00:12]} 31. Nxa5 {[%emt 0:00:11]} Rfa8 {[%emt 0:01:32]} 32. Nc6 {[%emt 0:00:06]} Ra4 {[%emt 0:00:43]} 33. g4 {[%emt 0:13:24]} fxg4 {[%emt 0:08:08]} 34. f5+ {[%emt 0:00:07]} Kh5 {[%emt 0:00:20]} 35. Rf4 {[%emt 0:02:05]} Rg8 {[%emt 0:01:53]} 36. Re1 {[%emt 0:01:25]} Rg5 {[%emt 0:02:10]} 37. Rexe4 {[%emt 0:01:28]} Bxd5 {[%emt 0:01:06]} 38. Re7 {[%emt 0:03:36]} Rxc4 {[%emt 0:03:31]} 39. Rxd7 {[%emt 0:00:18]} 1-0

[Event "WYCC 2018 O14"]
[Site "Halkidiki"]
[Date "2018.10.30"]
[Round "11"]
[White "Wernberg, Hugo"]
[Black "Risteski, Emil"]
[Result "0-1"]
[ECO "B32"]
[WhiteElo "1956"]
[BlackElo "2120"]
[Annotator "NA"]
[PlyCount "94"]
[EventDate "2018.10.20"]
[EventType "swiss"]
[EventCountry "GRE"]
[SourceTitle "playchess.com"]
[Source "ChessBase"]
[SourceQuality "1"]
[TimeControl "40/5400+30:1800+30"]

1. e4 {[%emt 0:00:00]} c5 {[%emt 0:00:00]} 2. Nf3 {[%emt 0:00:00]} Nc6 {[%emt 0:00:00]} 3. d4 {[%emt 0:00:00]} cxd4 {[%emt 0:00:00]} 4. Nxd4 {[%emt 0:00:01]} e5 {[%emt 0:00:00]} 5. Nb5 {[%emt 0:00:24]} d6 {[%emt 0:00:01]} 6. N1c3 {[%emt 0:00:07]} a6 {[%emt 0:00:04]} 7. Na3 {[%emt 0:00:10]} b5 {[%emt 0:00:04]} 8. Nd5 {[%emt 0:00:11]} Nge7 {[%emt 0:00:06]} 9. c4 {[%emt 0:00:14]} Nxd5 {[%emt 0:00:15]} 10. exd5 {[%emt 0:01:28]} Nd4 {[%emt 0:00:49]} 11. Be3 {[%emt 0:02:44]} Nf5 {[%emt 0:01:37]} 12. cxb5 {[%emt 0:01:45]} Nxe3 {[%emt 0:08:34]} 13. fxe3 {[%emt 0:00:19]} Qh4+ {[%emt 0:05:12]} 14. g3 {[%emt 0:01:01]} Qe4 {[%emt 0:11:57]} 15. Qc2 {[%emt 0:01:26]} Qxe3+ {[%emt 0:16:10]} 16. Qe2 {[%emt 0:06:04]} Qxe2+ {[%emt 0:13:12]} 17. Bxe2 {[%emt 0:00:42]} axb5 {[%emt 0:00:32]} 18. Nxb5 {[%emt 0:01:22]} Rb8 {[%emt 0:01:05]} 19. Na7 {[%emt 0:20:43]} Bd7 {[%emt 0:03:07]} 20. Nc6 {[%emt 0:00:53]} Rxb2 {[%emt 0:10:03]} 21. a4 {[%emt 0:02:05]} g6 {[%emt 0:00:04]} 22. a5 {[%emt 0:05:24]} Bh6 {[%emt 0:01:19]} 23. a6 {[%emt 0:02:32]} O-O {[%emt 0:00:30]} 24. O-O {[%emt 0:02:08]} Rxe2 {[%emt 0:01:43]} 25. a7 {[%emt 0:02:03]} Be3+ {[%emt 0:00:11]} 26. Kh1 {[%emt 0:00:11]} Bh3 {[%emt 0:01:54]} 27. Rg1 {[%emt 0:00:58]} Bxa7 {[%emt 0:03:48]} 28. Rxa7 {[%emt 0:00:26]} Bg4 {[%emt 0:00:14]} 29. Rb1 {[%emt 0:01:40]} Bf3+ {[%emt 0:00:47]} 30. Kg1 {[%emt 0:00:10]} Kh8 {[%emt 0:02:37]} 31. Ne7 {[%emt 0:00:53]} Rg2+ {[%emt 0:00:29]} 32. Kf1 {[%emt 0:00:12]} Rxh2 {[%emt 0:00:13]} 33. Rbb7 {[%emt 0:00:15]} e4 {[%emt 0:00:13]} 34. Ra3 {[%emt 0:01:16]} Rd2 {[%emt 0:02:24]} 35. Ke1 {[%emt 0:00:44]} Re2+ {[%emt 0:00:45]} 36. Kf1 {[%emt 0:00:17]} Rg2 {[%emt 0:00:29]} 37. g4 {[%emt 0:00:59]} Rxg4 {[%emt 0:01:00]} 38. Kf2 {[%emt 0:00:08]} h5 {[%emt 0:00:57]} 39. Ra6 {[%emt 0:00:54]} h4 {[%emt 0:00:30]} 40. Rxd6 {[%emt 0:00:00]} h3 {[%emt 0:00:00]} 41. Nxg6+ {[%emt 0:01:09]} Rxg6 {[%emt 0:00:14]} 42. Rxg6 {[%emt 0:00:08]} fxg6 {[%emt 0:00:03]} 43. Kg3 {[%emt 0:00:22]} e3 {[%emt 0:00:12]} 44. Kxh3 {[%emt 0:00:42]} e2 {[%emt 0:00:38]} 45. Re7 {[%emt 0:00:19]} Rd8 {[%emt 0:00:17]} 46. Kg3 {[%emt 0:00:25]} Bh5 {[%emt 0:00:03]} 47. Re5 {[%emt 0:00:30]} Rxd5 {[%emt 0:00:08]} 0-1